bitfinex/quotes_ETHUSD_20260209
["timestamp","ask_amount","ask_price","bid_price","bid_amount"]
[1770667275581,0.05631688,2126.2,2125.7,0.0011]
[1770667275871,0.05631688,2126.2,2125.5,0.0011]
[1770667276078,0.05631688,2126.0,2125.5,0.0011]
[1770667276448,1.17608317,2125.7,2125.5,0.0011]
[1770667276853,1.17590292,2126.1,2125.5,0.0011]
[1770667277199,0.05631688,2126.0,2125.5,0.0011]
[1770667277389,0.05631688,2125.8,2125.5,0.0011]
[1770667277591,0.05631688,2125.8,2124.6,0.02579453]
[1770667277592,1.01957624,2125.6,2124.6,0.02579453]
[1770667277798,0.05631688,2125.4,2124.6,1.20357541]
[1770667277975,0.05631688,2125.4,2124.6,1.20358345]
[1770667278172,0.05631688,2125.0,2124.6,0.02579453]
[1770667278371,1.17652595,2124.9,2124.6,0.02579453]
[1770667278688,0.05631688,2125.0,2124.6,0.02689453]
[1770667278900,0.05631688,2125.2,2124.6,0.02689453]
[1770667278901,1.17622991,2125.5,2124.6,1.2024855]
[1770667279102,0.05631688,2125.4,2124.7,0.0011]
[1770667279276,1.23245794,2125.6,2124.7,0.0011]
[1770667279815,0.05631688,2126.2,2124.8,4.23344018]
[1770667280103,1.1757513,2126.3,2124.9,0.0011]
[1770667280297,1.1757513,2126.3,2124.9,0.94854018]
[1770667280684,1.1757513,2126.3,2125.0,1.17647058]
[1770667281192,0.0012,2126.4,2125.1,0.94744018]
[1770667281370,0.0012,2126.4,2125.1,0.94854018]
[1770667282700,0.05631688,2126.0,2125.2,1.17635987]
[1770667282900,0.05631688,2126.2,2125.2,1.17635987]
[1770667283109,0.0012,2126.4,2125.3,0.0011]
[1770667283476,0.0012,2126.4,2125.3,0.94854018]
[1770667284077,1.17691047,2126.4,2125.3,0.94854018]
[1770667284509,1.23322735,2126.4,2125.3,0.94854018]
[1770667284801,1.23322735,2126.4,2125.4,1.17624917]
[1770667285004,0.0012,2126.4,2125.4,1.17624917]
[1770667285209,0.0012,2126.4,2125.5,0.0011]
[1770667285903,0.0012,2126.4,2125.6,3.287]
[1770667286887,0.0012,2126.4,2125.7,1.17718317]
[1770667287090,0.0012,2126.4,2125.8,0.94744018]
[1770667288115,0.0001,2126.2,2125.8,0.94744018]
[1770667288281,0.0012,2126.4,2125.8,0.94744018]
[1770667288877,0.0012,2126.4,2125.3,0.94744018]
[1770667289106,0.0012,2126.4,2125.8,1.17602703]
[1770667289481,0.0012,2126.4,2125.2,3.2881]
[1770667289688,0.0012,2126.4,2125.7,1.17608117]
[1770667289893,0.0012,2126.4,2125.6,1.17610444]
[1770667290093,0.05631688,2126.1,2125.4,1.17623701]
[1770667290295,0.05631688,2126.1,2125.2,4.46441549]
[1770667290613,0.05751688,2126.4,2125.4,1.17620366]
[1770667290804,0.05631688,2126.2,2125.4,1.17620366]
[1770667291008,0.05631688,2126.2,2125.3,4.70517476]
[1770667291009,0.05631688,2126.0,2125.2,3.2881]
[1770667291313,4.7597645,2126.2,2125.2,4.46445926]
[1770667291314,1.23216066,2126.2,2125.2,4.46445926]
[1770667291695,2.14676471,2126.2,2125.2,3.2881]
[1770667291907,0.91460405,2126.1,2125.2,0.0011]
[1770667292109,0.97092093,2125.8,2125.0,0.0011]
[1770667292589,0.91460405,2125.8,2125.0,0.0011]
[1770667292789,1.23216066,2126.2,2125.0,1.17754199]
[1770667292790,0.05631688,2126.1,2125.0,1.17754199]
[1770667293012,1.17591721,2126.0,2125.0,0.0011]
[1770667293212,0.05631688,2125.7,2125.0,0.0011]
[1770667293525,1.17591721,2126.0,2125.0,0.0011]
[1770667294216,0.97092093,2125.9,2125.0,0.0011]
[1770667295096,1.17602784,2125.8,2125.0,0.0011]
[1770667295617,1.1758619,2126.1,2125.0,0.0011]
[1770667296408,0.05631688,2126.0,2125.0,0.0011]
[1770667297020,1.1758619,2126.1,2125.0,0.0011]
[1770667298723,0.05751688,2126.4,2125.1,0.94744018]
[1770667298911,0.0012,2126.4,2125.3,0.94744018]
[1770667299216,0.0012,2126.4,2125.4,1.17624917]
[1770667299422,0.0012,2126.4,2125.5,0.94744018]
[1770667299619,0.0012,2126.4,2125.4,1.17624917]
[1770667300305,0.0012,2125.9,2125.4,1.17624917]
[1770667300826,0.0012,2126.4,2125.4,2.12368935]
[1770667301209,0.0012,2126.4,2125.4,0.94744018]
[1770667302827,0.0012,2126.4,2125.3,4.7049967]
[1770667305034,0.0012,2126.4,2125.2,4.46441886]
[1770667305422,0.0012,2126.4,2125.2,5.41185904]
[1770667306926,0.0012,2126.4,2125.3,11.40176127]
[1770667307104,0.0012,2126.4,2125.3,12.34920145]
[1770667307311,0.0012,2126.4,2125.6,0.94744018]
[1770667307832,0.0012,2126.4,2125.5,1.17619383]
[1770667309014,0.0012,2126.4,2125.5,2.12363401]
[1770667310933,0.0012,2126.4,2125.6,11.40176127]
[1770667311147,0.0012,2126.4,2125.7,0.95778291]
[1770667311442,0.0012,2126.4,2125.8,1.17602784]
[1770667311744,0.0012,2126.4,2125.9,3.287]
[1770667311930,0.0012,2126.2,2125.9,3.287]
[1770667312808,0.0012,2126.4,2125.9,3.287]
[1770667313550,0.0012,2126.4,2126.0,1.17591721]
[1770667314744,4.70024883,2127.6,2126.1,0.95778291]
[1770667315063,0.98653234,2127.7,2126.1,0.95778291]
[1770667315240,4.6993361,2128.0,2126.5,11.40176127]
[1770667315436,4.6993361,2128.0,2126.7,1.17553016]
[1770667315437,1.17481203,2128.0,2126.7,1.17553016]
[1770667315841,1.17477066,2128.1,2126.7,2.13331307]
[1770667316248,1.17477066,2128.1,2126.8,0.95778291]
[1770667316459,1.17473982,2128.2,2126.8,0.95778291]
[1770667316664,2.16110603,2128.5,2127.0,0.95778291]
[1770667316870,0.98653234,2129.0,2127.4,0.95778291]
[1770667317055,0.98653234,2129.0,2126.9,11.40176127]
[1770667317056,0.05631688,2128.9,2127.5,3.287]
[1770667317242,0.05631688,2128.9,2126.9,12.46194418]
[1770667317243,0.98653234,2129.0,2127.6,3.287]
[1770667317573,0.98653234,2129.0,2127.8,1.17492245]
[1770667317574,1.17430369,2129.0,2127.8,1.17492245]
[1770667318062,1.17430369,2129.0,2127.7,1.17497515]
[1770667318063,1.04284922,2128.7,2127.7,1.17497515]
[1770667318762,0.05631688,2128.6,2127.7,1.17497515]
[1770667319246,0.05631688,2128.9,2127.7,1.17497515]
[1770667319657,1.17437053,2128.8,2127.5,4.6999107]
[1770667320466,1.23068741,2128.8,2127.4,5.65769361]
[1770667320669,2.21721975,2128.8,2127.4,5.65769361]
[1770667321168,1.17437053,2128.8,2127.4,5.65769361]
[1770667321364,1.23068741,2128.8,2127.4,5.65769361]
[1770667322443,1.04284922,2128.2,2127.1,1.17527204]
[1770667322638,1.23068741,2128.8,2127.4,1.17513129]
[1770667322639,0.98653234,2128.3,2127.4,1.17513129]
[1770667322842,0.98653234,2128.7,2127.4,1.17513129]
[1770667323071,0.05631688,2128.6,2127.4,2.1329142]
[1770667323371,0.05631688,2128.6,2127.4,1.17513129]
[1770667323681,0.05631688,2128.6,2127.0,5.65835637]
[1770667323683,0.05631688,2127.7,2126.5,0.1024]
[1770667323844,1.17486724,2127.9,2126.5,2.13339582]
[1770667324254,0.05631688,2127.8,2126.5,2.13339582]
[1770667324753,1.17486724,2127.9,2126.5,2.13339582]
[1770667327960,0.98653234,2127.9,2126.5,1.17561291]
[1770667328164,4.69946896,2128.1,2126.8,11.47188684]
[1770667328362,4.8014273,2128.5,2126.9,4.24278291]
[1770667328363,4.6981561,2128.5,2126.9,4.24278291]
[1770667328559,4.6981561,2128.5,2127.0,0.95778291]
[1770667329159,4.75447298,2128.5,2127.0,0.95778291]
[1770667329746,0.05631688,2128.3,2126.6,0.95778291]
[1770667329948,1.17470162,2128.2,2126.8,1.17547489]
[1770667330170,0.05631688,2128.1,2126.8,2.1332578]
[1770667330783,1.17470162,2128.2,2126.8,2.1332578]
[1770667331268,1.17470162,2128.2,2126.9,0.95778291]
[1770667331651,0.05631688,2128.1,2126.9,0.95778291]
[1770667332184,1.17481203,2128.0,2127.0,1.17536436]
[1770667332879,1.17481203,2128.0,2126.9,2.13316413]
[1770667333068,1.17481203,2128.0,2126.9,1.17538122]
[1770667333970,1.17568087,2128.6,2127.1,2.13309201]
[1770667334160,1.17568087,2128.6,2127.3,0.95778291]
[1770667336269,0.0012,2127.8,2127.4,2.13292627]
[1770667336472,0.0012,2128.6,2127.5,0.95778291]
[1770667336671,0.0012,2128.6,2127.9,10.51410393]
[1770667336871,0.0012,2128.6,2128.0,3.285]
[1770667337554,0.0012,2128.6,2128.0,4.24278291]
[1770667337754,0.0012,2129.2,2128.4,0.95778291]
[1770667337972,0.0012,2129.2,2127.9,10.51410393]
[1770667338183,0.0012,2129.2,2128.1,1.17475682]
[1770667338767,0.0012,2129.2,2128.1,2.13253973]
[1770667338960,0.0012,2129.2,2128.1,1.17475682]
[1770667339286,0.0012,2129.2,2128.3,10.51410393]
[1770667339459,0.0012,2129.2,2128.2,0.95778291]
[1770667340392,0.0012,2129.2,2128.3,1.17464643]
[1770667344692,0.0012,2129.2,2128.2,4.69858572]
[1770667345286,0.0012,2129.2,2128.2,5.64572611]
[1770667345495,0.0012,2129.2,2128.3,0.94714039]
[1770667345801,1.17370892,2130.0,2128.7,0.94714039]
[1770667345984,1.92027243,2129.9,2128.8,3.283]
[1770667346187,1.00607795,2129.8,2128.8,3.283]
[1770667346577,1.17387425,2129.7,2128.9,1.17431537]
[1770667346779,1.17384884,2129.8,2128.9,1.17431537]
[1770667346981,1.00573533,2129.7,2128.8,4.45735852]
[1770667347193,1.17384884,2129.8,2128.8,4.45735852]
[1770667347498,1.00531574,2129.7,2128.8,4.45735852]
[1770667347803,1.17384884,2129.8,2128.8,4.45735852]
[1770667348011,1.00531231,2129.7,2128.8,4.45735852]
[1770667348302,0.0012,2129.0,2128.8,4.45735852]
[1770667348521,1.17384884,2129.8,2128.8,4.45735852]
[1770667348679,1.00489494,2129.7,2128.8,4.45735852]
[1770667348873,1.17384884,2129.8,2128.8,4.45735852]
[1770667349183,1.00491123,2129.7,2128.8,4.45735852]
[1770667349390,1.17384884,2129.8,2128.8,4.45735852]
[1770667349710,0.91419448,2130.3,2128.9,11.46124432]
[1770667349924,1.00456131,2130.1,2129.0,0.94714039]
[1770667350710,1.00456131,2130.1,2129.1,1.17420506]
[1770667350905,2.17821999,2130.1,2129.1,1.17420506]
[1770667351211,1.00456131,2130.1,2129.1,1.17420506]
[1770667351508,0.0012,2130.4,2129.3,11.46124432]
[1770667351710,0.0012,2130.4,2129.4,3.283]
[1770667352613,4.45625657,2130.9,2129.6,11.46124432]
[1770667352819,5.37045105,2130.9,2129.5,1.1739845]
[1770667352986,4.51257345,2130.9,2129.5,1.1739845]
[1770667353191,0.91419448,2130.8,2129.5,1.1739845]
[1770667353387,1.17325657,2130.9,2129.6,10.51410393]
[1770667353596,1.17325657,2130.9,2129.7,0.94714039]
[1770667355091,1.17430309,2131.1,2129.8,1.17381913]
[1770667355998,1.17430309,2131.1,2129.8,2.12095952]
[1770667356220,1.17430309,2131.1,2129.9,0.94714039]
[1770667356509,0.0012,2131.1,2130.0,3.282]
[1770667357520,0.0012,2131.1,2130.1,1.17365381]
[1770667357703,0.0012,2131.1,2130.2,0.94714039]
[1770667358788,0.0012,2131.1,2130.1,1.17365381]
[1770667361118,0.0012,2130.9,2130.2,0.94714039]
[1770667361318,0.01897208,2131.4,2130.4,1.00345727]
[1770667361620,1.17304804,2131.2,2130.1,1.17365381]
[1770667362595,2.08724252,2131.2,2130.1,1.17365381]
[1770667362793,0.91419448,2131.1,2130.0,3.282]
[1770667363116,0.91419448,2130.9,2129.7,1.17384517]
[1770667363326,1.05730826,2130.8,2129.7,1.17383071]
[1770667363494,1.00099138,2130.7,2129.7,1.17383194]
[1770667363690,1.17337839,2130.6,2129.7,4.695383]
[1770667364423,1.00300407,2130.5,2129.7,1.17387425]
[1770667364612,1.17337839,2130.6,2129.7,1.17387425]
[1770667364796,1.00301645,2130.5,2129.7,1.17387425]
[1770667365121,1.17337839,2130.6,2129.6,4.45488474]
[1770667365694,1.17348854,2130.4,2129.6,4.45488474]
[1770667366618,1.17332332,2130.7,2129.6,4.45488474]
[1770667366795,1.00473068,2130.6,2129.6,5.40202513]
[1770667366997,1.17332332,2130.7,2129.6,5.40202513]
[1770667367304,1.00472798,2130.6,2129.6,5.40202513]
[1770667367512,1.00472798,2130.5,2129.6,5.40202513]
[1770667367708,1.17343135,2130.6,2129.6,5.40202513]
[1770667367908,1.00519645,2130.5,2129.6,5.40202513]
[1770667368121,1.17343135,2130.6,2129.6,5.40202513]
[1770667368422,2.08743058,2130.9,2129.6,4.51120162]
[1770667368628,0.91419448,2131.2,2129.8,11.5175612]
[1770667368925,2.17836235,2131.1,2129.8,11.5175612]
[1770667369122,1.00525408,2131.0,2129.8,11.5175612]
[1770667369435,0.91419448,2131.5,2129.8,11.5175612]
[1770667369436,1.1727729,2131.7,2130.2,10.57042081]
[1770667369602,1.00505879,2131.6,2130.3,3.281]
[1770667369803,1.17255288,2132.1,2130.8,1.17326825]
[1770667370026,1.17255288,2132.1,2130.9,3.281]
[1770667370027,1.91912868,2132.0,2130.9,3.281]
[1770667370197,1.00490902,2131.9,2130.9,3.281]
[1770667372092,1.17271789,2131.8,2130.9,4.45417548]
[1770667372295,1.00439886,2131.7,2130.9,4.45417548]
[1770667372606,1.17271789,2131.8,2130.9,4.45417548]
[1770667372807,1.00441392,2131.7,2130.9,4.45417548]
[1770667373108,1.17271789,2131.8,2130.9,4.45417548]
[1770667373305,1.00457339,2131.7,2130.9,4.45417548]
[1770667373509,1.17271789,2131.8,2130.9,4.45417548]
[1770667373728,1.00572534,2131.7,2130.9,3.281]
[1770667373902,1.00452534,2131.6,2130.9,3.281]
[1770667374100,1.17288294,2131.5,2130.9,3.281]
[1770667374310,1.17288294,2131.5,2130.6,1.17334309]
[1770667374501,1.00504154,2131.4,2130.8,1.17321492]
[1770667374698,1.17288294,2131.5,2130.8,1.173265]
[1770667374904,1.00504302,2131.4,2130.8,1.173265]
[1770667375107,1.17288294,2131.5,2130.8,1.173265]
[1770667375317,1.00551528,2131.4,2130.8,1.173265]
[1770667375612,1.17288294,2131.5,2130.6,4.6934051]
[1770667375820,1.00554137,2131.4,2130.7,1.17327636]
[1770667376018,1.17288294,2131.5,2130.7,1.17327636]
[1770667376219,1.00557656,2131.4,2130.7,1.17327636]
[1770667376431,2.17885709,2131.3,2130.4,1.17348377]
[1770667376735,1.00586409,2131.2,2130.4,1.17348377]
[1770667377835,1.00586409,2131.2,2130.3,7.97413783]
[1770667377836,1.00586409,2131.2,2130.3,3.28]
[1770667378030,1.00586409,2131.1,2130.4,1.17348222]
[1770667378326,2.17903763,2131.0,2130.4,1.17348222]
[1770667378633,1.00586409,2130.9,2130.4,1.17348222]
[1770667379125,2.08715763,2131.5,2130.4,1.17348222]
[1770667379328,4.69186958,2131.4,2130.4,1.17348222]
[1770667380532,4.69186958,2131.4,2130.3,3.28]
[1770667380533,0.91421966,2131.3,2130.3,3.28]
[1770667380700,0.91421966,2131.3,2130.3,4.45354171]
[1770667381599,0.91421966,2131.3,2130.3,4.45353609]
[1770667381805,1.17288294,2131.5,2130.3,5.35479122]
[1770667382022,1.17288294,2131.5,2130.4,0.90125513]
[1770667382418,1.17288294,2131.5,2130.5,1.17343346]
[1770667382626,0.91421966,2131.4,2130.4,1.17344947]
[1770667382930,0.91421966,2131.4,2130.2,4.69428668]
[1770667383135,0.91421966,2131.4,2130.0,0.0011]
[1770667383306,1.17288294,2131.5,2130.4,1.17348707]
[1770667383502,1.17288294,2131.5,2130.5,0.90125513]
[1770667383937,1.17288294,2131.5,2130.4,1.17348707]
[1770667384136,2.0871026,2131.5,2130.4,1.17348707]
[1770667384337,0.91421966,2131.2,2130.0,0.0011]
[1770667384549,0.91421966,2131.1,2130.0,0.0011]
[1770667386513,0.91421966,2130.9,2130.0,0.0011]
[1770667386741,0.91421966,2130.9,2130.7,0.0011]
[1770667386941,0.91421966,2130.9,2130.0,0.0011]
[1770667388525,1.17326825,2130.8,2130.0,0.0011]
[1770667388939,0.91421966,2130.6,2130.0,0.0011]
[1770667390235,1.17326825,2130.8,2130.0,0.0011]
[1770667391201,1.00829769,2130.7,2130.0,0.0011]
[1770667391342,1.00829769,2130.6,2130.0,0.0011]
[1770667391669,1.00829769,2130.5,2130.0,0.0011]
[1770667391976,1.17326825,2130.8,2130.0,0.0011]
[1770667392143,1.00821675,2130.7,2130.0,0.0011]
[1770667392475,1.00821675,2130.6,2130.0,0.0011]
[1770667392642,1.17348854,2130.4,2130.0,0.0011]
[1770667392970,1.00821675,2130.3,2130.0,0.0011]
[1770667393151,1.17348854,2130.4,2130.0,0.0011]
[1770667393354,1.00813766,2130.3,2130.0,0.0011]
[1770667393574,1.17348854,2130.4,2130.0,0.0011]
[1770667393781,1.00816398,2130.3,2130.0,0.0011]
[1770667393992,1.00819086,2130.2,2130.0,0.0011]
[1770667394159,1.17348854,2130.4,2130.0,0.0011]
[1770667394490,1.00817479,2130.3,2130.0,0.0011]
[1770667394795,1.17348854,2130.4,2130.0,0.0011]
[1770667394986,2.18175219,2130.3,2130.0,0.0011]
[1770667395166,1.17357418,2130.3,2130.0,0.0011]
[1770667396189,1.00821688,2130.2,2129.8,0.0011]
[1770667396360,1.00822012,2130.1,2129.8,0.0011]
[1770667396561,1.17357418,2130.3,2129.8,0.0011]
[1770667396763,1.00817151,2130.2,2129.8,0.0011]
[1770667396974,4.69417452,2130.7,2129.8,0.0011]
[1770667397261,1.00817037,2130.6,2129.8,0.0011]
[1770667397469,1.00817037,2130.5,2129.8,0.0011]
[1770667397791,1.00817037,2130.4,2129.8,0.0011]
[1770667397985,1.00817037,2130.3,2129.8,0.0011]
[1770667398184,1.00817037,2130.2,2129.8,0.0011]
[1770667398504,5.60839418,2130.7,2129.8,0.0011]
[1770667398505,5.60839418,2130.7,2130.0,0.0011]
[1770667398663,1.00794401,2130.6,2130.0,0.0011]
[1770667398996,1.17348854,2130.4,2130.0,0.0011]
[1770667399172,1.00794401,2130.3,2130.0,0.0011]
[1770667400058,1.17331881,2130.8,2130.0,0.0011]
[1770667401094,0.0012,2130.9,2130.0,0.0011]
[1770667401291,0.94539749,2130.9,2130.0,0.0011]
[1770667401671,1.00171437,2130.9,2130.0,0.0011]
[1770667401867,0.94419749,2130.8,2130.0,0.0011]
[1770667402067,0.94419749,2130.8,2129.8,0.0011]
[1770667402068,0.94419749,2130.6,2129.8,0.0011]
[1770667403171,0.94419749,2130.4,2129.6,0.0011]
[1770667403558,3.36342195,2130.4,2129.6,0.0011]
[1770667403760,0.94419749,2130.3,2129.6,0.0011]
[1770667404198,3.36342195,2130.3,2129.0,1.17425944]
[1770667404400,0.05631688,2130.0,2128.9,0.0011]
[1770667404693,0.94419749,2129.9,2128.8,1.17436484]
[1770667405062,1.17381913,2129.8,2128.7,2.17032813]
[1770667405702,1.17365381,2130.1,2128.8,0.99590243]
[1770667406468,1.17365381,2130.1,2128.8,1.05221931]
[1770667406687,1.17365381,2130.1,2128.8,0.99590243]
[1770667407393,1.17365381,2130.1,2129.0,0.99590243]
[1770667409208,1.17365381,2130.1,2129.1,1.17420506]
[1770667410510,1.17365381,2130.1,2129.0,2.17012086]
[1770667411003,1.17365381,2130.1,2129.1,0.99590243]
[1770667411198,1.37365381,2130.1,2129.1,0.99590243]
[1770667411507,0.94419749,2130.0,2129.2,0.0011]
[1770667412083,1.00955657,2129.9,2129.2,0.0011]
[1770667412283,1.95375406,2129.8,2129.2,0.0011]
[1770667412484,1.00955657,2129.7,2129.2,0.0011]
[1770667412695,1.00955657,2129.6,2129.2,0.0011]
[1770667412899,1.00955657,2129.5,2129.0,0.0011]
[1770667413109,1.00955657,2129.4,2129.0,0.0011]
[1770667413296,1.17414991,2129.2,2129.0,0.0011]
[1770667413611,1.00955657,2129.1,2129.0,0.0011]
[1770667415211,1.00955657,2129.1,2128.5,0.0011]
[1770667415404,1.17426021,2129.0,2128.5,0.0011]
[1770667415604,1.00955657,2128.9,2128.5,0.0011]
[1770667416820,1.17409052,2129.4,2128.5,0.99700243]
[1770667416989,1.00937754,2129.3,2128.5,0.99700243]
[1770667417321,1.00937754,2129.2,2128.5,0.99700243]
[1770667417522,1.00926355,2129.1,2128.6,2.1703833]
[1770667417813,4.69540709,2129.8,2128.7,0.99590243]
[1770667418018,1.00912579,2129.7,2128.7,0.99590243]
[1770667418313,1.00912579,2129.6,2128.7,0.99590243]
[1770667418517,1.00912579,2129.5,2128.7,0.99590243]
[1770667418714,4.69540709,2129.8,2128.6,1.17448087]
[1770667418715,3.36342195,2130.4,2128.9,0.99590243]
[1770667418891,0.05631688,2130.3,2128.9,0.99590243]
[1770667419214,0.94419749,2130.5,2128.8,3.282]
[1770667419215,1.00051437,2130.1,2128.8,3.282]
[1770667419411,0.05631688,2129.9,2128.8,3.282]
[1770667419589,1.17381913,2129.8,2128.8,4.45633534]
[1770667420394,0.94419749,2129.7,2128.8,3.282]
[1770667420594,1.17381913,2129.8,2128.9,0.99590243]
[1770667420818,1.17381913,2129.8,2128.8,1.17434527]
[1770667421018,1.17381913,2129.8,2128.8,2.17024431]
[1770667421228,1.17381913,2129.8,2128.8,0.99590243]
[1770667421395,1.17381913,2129.8,2128.8,2.17026764]
[1770667421592,1.17381913,2129.8,2128.8,1.17436521]
[1770667421793,5.63947404,2129.9,2128.7,4.69754517]
[1770667423588,5.63947404,2129.9,2128.7,1.1744257]
[1770667424021,5.63947404,2129.9,2128.7,1.1754257]
[1770667424206,0.002,2129.6,2128.7,1.1754257]
[1770667426520,0.002,2129.6,2128.8,0.99590243]
[1770667427510,0.002,2129.6,2128.8,1.05221931]
[1770667427710,0.002,2129.8,2129.0,0.99590243]
[1770667428115,0.002,2129.8,2129.2,0.99590243]
[1770667428594,1.17337839,2130.6,2129.4,0.99590243]
[1770667429713,1.17337839,2130.6,2129.4,0.9760254]
[1770667430123,4.69450058,2130.7,2129.5,2.1500099]
[1770667432208,0.9396027,2130.6,2129.5,1.1739845]
[1770667432602,0.9396027,2130.6,2129.2,0.9760254]
[1770667432813,4.69450058,2130.7,2129.5,2.15000532]
[1770667433131,4.69450058,2130.7,2129.6,0.9760254]
[1770667434236,0.0012,2130.7,2129.7,1.17387425]
[1770667434644,0.0012,2130.7,2129.8,0.9760254]
[1770667435946,0.0012,2130.7,2129.8,1.03234228]
[1770667436311,0.0012,2130.7,2130.0,0.9760254]
[1770667436510,0.0012,2130.5,2130.2,0.9760254]
[1770667436810,0.0012,2130.9,2130.2,0.9760254]
[1770667437811,0.0012,2130.9,2130.1,3.281]
[1770667438325,0.0012,2130.9,2130.2,1.17359872]
[1770667440242,0.0012,2130.9,2130.1,3.281]
[1770667440413,0.0012,2130.9,2130.2,1.17357729]
[1770667440618,0.0012,2130.9,2130.2,2.14960269]
[1770667441016,4.69197203,2131.5,2130.3,0.9760254]
[1770667441530,5.63157473,2131.5,2130.3,0.9760254]
[1770667441716,1.17288294,2131.6,2130.3,0.9760254]
[1770667441717,1.17286883,2131.6,2130.3,0.9760254]
[1770667442046,0.0012,2131.7,2130.9,0.9760254]
[1770667442370,0.0012,2131.7,2131.2,0.9760254]
[1770667442644,1.17227797,2132.6,2131.2,0.9760254]
[1770667443045,2.11179131,2132.8,2131.5,12.62614781]
[1770667443344,1.17218861,2132.8,2131.6,4.2560254]
[1770667443650,0.9396027,2132.7,2131.5,3.28]
[1770667443821,1.17218861,2132.8,2131.6,0.9760254]
[1770667444328,0.9396027,2133.1,2131.7,1.1727729]
[1770667445349,0.9396027,2133.1,2131.7,2.1487983]
[1770667445646,0.99591958,2133.1,2131.6,1.17280074]
[1770667445846,0.99591958,2133.1,2131.5,3.28]
[1770667446046,0.99591958,2133.1,2131.6,1.17282072]
[1770667446265,0.99591958,2133.1,2131.5,3.28]
[1770667446266,0.9396027,2132.7,2131.5,3.28]
[1770667446442,0.9396027,2132.6,2131.5,3.28]
[1770667447372,0.9396027,2132.6,2131.5,4.45288194]
[1770667447566,1.172223,2132.7,2131.6,0.9760254]
[1770667447756,1.172223,2132.7,2131.5,3.28]
[1770667447757,0.9396027,2132.6,2131.5,3.28]
[1770667448068,0.9396027,2132.6,2131.5,4.45287975]
[1770667448370,0.9396027,2132.6,2131.5,3.28]
[1770667448560,1.17233294,2132.5,2131.5,3.28]
[1770667449067,1.17233294,2132.5,2131.5,4.45288269]
[1770667449272,1.17233294,2132.5,2131.5,5.42890809]
[1770667450157,1.17233294,2132.5,2131.6,0.9760254]
[1770667450468,1.17216804,2132.8,2131.7,1.1727729]
[1770667452673,1.17227797,2132.6,2131.6,3.279]
[1770667455060,2.11291578,2132.9,2131.7,1.1727729]
[1770667455573,0.9396027,2132.8,2131.6,4.4517893]
[1770667456768,0.9396027,2132.8,2131.6,3.279]
[1770667457067,0.9396027,2132.8,2131.6,4.45182547]
[1770667457384,2.1118257,2132.7,2131.6,3.279]
[1770667457865,0.9396027,2132.6,2131.6,3.279]
[1770667458074,0.9396027,2132.6,2131.6,4.45182119]
[1770667459070,0.9396027,2132.6,2130.9,0.9760254]
[1770667459382,0.9396027,2132.6,2130.8,0.97979011]
[1770667459383,1.17260787,2132.0,2130.8,0.97979011]
[1770667460353,1.17260787,2132.0,2131.5,0.0011]
[1770667461467,4.69043151,2132.1,2131.5,0.0011]
[1770667461862,5.65908095,2132.1,2131.5,0.0011]
[1770667462056,0.96864944,2132.0,2130.6,5.63324738]
[1770667462257,4.69043151,2132.1,2130.9,1.17320745]
[1770667462463,4.69043151,2132.1,2131.0,0.93874528]
[1770667462864,4.69043151,2132.1,2130.8,1.17324164]
[1770667462865,5.65908095,2132.1,2130.8,1.17324164]
[1770667463166,1.02496632,2132.0,2130.6,0.0011]
[1770667463373,1.17266288,2131.9,2130.6,0.0011]
[1770667463569,0.96864944,2131.8,2130.6,0.0011]
[1770667464151,1.02496632,2131.8,2130.6,0.0011]
[1770667464354,0.96864944,2131.8,2130.6,0.0011]
[1770667464780,0.96864944,2131.8,2130.6,0.93984528]
[1770667465574,1.1727729,2131.7,2130.7,1.17332332]
[1770667466184,1.1727729,2131.7,2130.6,2.11318697]
[1770667467483,1.1727729,2131.7,2130.6,0.93984528]
[1770667467685,3.278,2131.6,2130.6,0.0011]
[1770667469157,3.278,2131.6,2130.6,0.93984528]
[1770667469562,1.17288294,2131.5,2130.7,1.17332332]
[1770667470374,4.45086982,2131.6,2130.8,0.93874528]
[1770667470680,1.00746533,2131.5,2130.8,0.93874528]
[1770667470890,1.00749956,2131.4,2130.6,1.17444085]
[1770667471086,4.45086982,2131.6,2130.6,1.17444085]
[1770667471397,1.00755592,2131.5,2130.6,1.17444085]
[1770667471605,1.00755592,2131.4,2130.6,1.17444085]
[1770667471814,1.00755592,2131.3,2130.6,1.17444085]
[1770667471979,1.00755592,2131.3,2130.6,0.0011]
[1770667472786,1.00755592,2131.3,2130.8,0.0011]
[1770667473706,1.17304804,2131.2,2130.8,0.0011]
[1770667473888,1.00755592,2131.1,2130.8,0.0011]
[1770667474062,1.00755592,2131.1,2130.6,0.0011]
[1770667474890,1.17302528,2131.3,2130.6,0.0011]
[1770667475089,1.00752692,2131.2,2130.6,0.93984528]
[1770667475269,1.17302528,2131.3,2130.6,0.93984528]
[1770667475469,1.00768548,2131.2,2130.6,0.93984528]
[1770667475666,1.17302528,2131.3,2130.6,0.93984528]
[1770667475882,1.00767903,2131.2,2130.6,1.17446759]
[1770667476075,4.69153635,2131.5,2130.6,1.17446759]
[1770667476288,1.00768496,2131.4,2130.6,0.0011]
[1770667476493,1.00768496,2131.3,2130.6,0.0011]
[1770667476681,1.00768496,2131.2,2130.6,0.0011]
[1770667476990,1.00768496,2131.1,2130.6,0.0011]
[1770667477175,4.69153635,2131.5,2130.6,0.0011]
[1770667477374,1.00761211,2131.4,2130.6,0.0011]
[1770667477568,1.00761211,2131.3,2130.6,0.0011]
[1770667477992,1.17304804,2131.2,2130.6,0.0011]
[1770667478194,1.00761211,2131.1,2130.6,0.0011]
[1770667478397,0.96864944,2131.0,2130.6,0.0011]
[1770667478573,1.00761211,2130.9,2130.6,0.0011]
[1770667478773,1.17282792,2131.6,2130.6,0.93984528]
[1770667480097,4.6911397,2131.7,2130.7,1.17332332]
[1770667481191,4.6911397,2131.7,2130.6,2.11318713]
[1770667481391,4.6911397,2131.7,2130.6,0.0011]
[1770667481593,4.6911397,2131.7,2130.6,1.17446642]
[1770667481594,0.96864944,2131.6,2130.6,1.17446642]
[1770667481794,4.6911397,2131.7,2130.6,2.1132117]
[1770667483699,4.6911397,2131.7,2130.6,0.93984528]
[1770667483906,5.65978914,2131.7,2130.6,0.93984528]
[1770667484110,5.65978914,2131.7,2130.6,0.0011]
[1770667484111,2.14153238,2131.5,2130.6,0.0011]
[1770667484946,2.14153238,2131.5,2130.6,0.93984528]
[1770667484947,1.17288294,2131.5,2130.6,0.93984528]
[1770667485082,1.17288294,2131.5,2130.8,0.0011]
[1770667485281,1.17408294,2131.5,2130.8,0.0011]
[1770667485688,0.0012,2131.5,2130.8,0.93984528]
[1770667486415,0.0012,2131.5,2130.9,1.17321319]